fUST/lending_fUST_20250930
["ID","MTS","AMOUNT","RATE_DAILY","PERIOD"]
[388447934,1759173007740,-406.81383048,0.00023031,2]
[388447935,1759173007770,-500.0,0.00023031,2]
[388447936,1759173007941,-500.0,0.00023031,2]
[388447937,1759173007974,-500.0,0.00023031,2]
[388447938,1759173008002,-500.0,0.00023031,2]
[388447939,1759173008029,-517.75355587,0.00023031,2]
[388447940,1759173015846,-300.0,0.00023,2]
[388447941,1759173015876,-1000.0,0.00023018,2]
[388447942,1759173015904,-975.65501342,0.00023018,2]
[388447943,1759173015935,-500.0,0.00023018,2]
[388447944,1759173015967,-500.0,0.00023018,2]
[388447945,1759173015998,-500.0,0.00023018,2]
[388447946,1759173016031,-500.0,0.00023018,2]
[388447947,1759173016063,-500.0,0.00023018,2]
[388447948,1759173016169,-500.0,0.00023018,2]
[388447949,1759173016201,-500.0,0.00023018,2]
[388447950,1759173016231,-1171.83,0.00023022,3]
[388447951,1759173016263,-810.66,0.00023022,10]
[388447952,1759173016295,-480.0,0.0002303,2]
[388447953,1759173016324,-480.0,0.0002303,2]
[388447954,1759173016352,-480.0,0.00023031,2]
[388447955,1759173016380,-478.63,0.00023031,2]
[388447956,1759173016509,-197.77,0.00023031,2]
[388447957,1759173016536,-480.0,0.00023031,2]
[388447958,1759173016565,-480.0,0.00023031,2]
[388447959,1759173017085,-500.0,0.00023018,2]
[388447960,1759173017095,-181.47753833,0.00023032,2]
[388447961,1759173017147,-10000.01,0.00023032,2]
[388447962,1759173017165,-10000.01,0.00023032,2]
[388447963,1759173017291,-10000.01,0.00023032,2]
[388447964,1759173029398,-999.43,0.00022987,2]
[388447965,1759173029426,-300.0,0.00023,2]
[388447966,1759173029455,-500.0,0.00023018,2]
[388447967,1759173029483,-500.0,0.00023018,2]
[388447968,1759173029514,-255.55003982,0.00023018,2]
[388447969,1759173029544,-151.0,0.00023018,2]
[388447970,1759173029573,-1456.51,0.00023022,3]
[388447971,1759173029600,-758.32,0.0002303,2]
[388447972,1759173029748,-158.38992036,0.0002303,2]
[388448009,1759173032676,-728.25,0.00023022,3]
[388448011,1759173032686,-321.61007964,0.0002303,2]
[388448012,1759173032696,-2544.2,0.0002303,2]
[388448014,1759173032706,-480.0,0.00023031,2]
[388448016,1759173032715,-357.24883556,0.00023031,2]
[388448018,1759173032725,-5381.11,0.00023031,2]
[388448020,1759173032734,-480.0,0.00023031,2]
[388448022,1759173032743,-1839.96,0.00023031,2]
[388448024,1759173032752,-480.0,0.00023031,2]
[388448026,1759173032760,-480.0,0.00023031,2]
[388448028,1759173032769,-119305.30103267,0.00023032,2]
[388448030,1759173032780,-2781.09999522,0.00023032,2]
[388448032,1759173032792,-62091.52406403,0.00023032,2]
[388448034,1759173032801,-50000.0,0.00023032,2]
[388448036,1759173032809,-500.0,0.00023032,2]
[388448038,1759173032819,-500.0,0.00023032,2]
[388448041,1759173032827,-500.0,0.00023032,2]
[388448043,1759173032836,-500.0,0.00023032,2]
[388448046,1759173032845,-500.0,0.00023032,2]
[388448049,1759173032854,-500.0,0.00023032,2]
[388448052,1759173032863,-500.0,0.00023032,2]
[388448054,1759173032873,-500.0,0.00023032,2]
[388448056,1759173032882,-500.0,0.00023032,2]
[388448057,1759173032890,-500.0,0.00023032,2]
[388448059,1759173032899,-500.0,0.00023032,2]
[388448061,1759173032909,-500.0,0.00023032,2]
[388448063,1759173032918,-160.0,0.00023032,2]
[388448065,1759173032927,-168.0,0.00023042,2]
[388448067,1759173032937,-500.0,0.00023073,2]
[388448069,1759173032946,-302.68444569,0.00023073,2]
[388448070,1759173032955,-500.0,0.00023073,2]
[388448072,1759173032965,-500.0,0.00023073,2]
[388448074,1759173032974,-500.0,0.00023073,2]
[388448076,1759173032983,-500.0,0.00023073,2]
[388448078,1759173032992,-500.0,0.00023073,2]
[388448080,1759173033001,-500.0,0.00023073,2]
[388448082,1759173033010,-500.0,0.00023073,2]
[388448084,1759173033020,-500.0,0.00023073,2]
[388448086,1759173033028,-500.0,0.00023073,2]
[388448087,1759173033037,-500.0,0.00023073,2]
[388448089,1759173033046,-500.0,0.00023073,2]
[388448091,1759173033055,-500.0,0.00023073,2]
[388448093,1759173033064,-500.0,0.00023073,2]
[388448095,1759173033072,-500.0,0.00023073,2]
[388448097,1759173033081,-500.0,0.00023073,2]
[388448098,1759173033090,-500.0,0.00023073,2]
[388448100,1759173033099,-1446.94465034,0.00023094,2]
[388448101,1759173033108,-526.72222862,0.00023121,2]
[388448103,1759173033116,-480.0,0.00023121,2]
[388448105,1759173033125,-480.0,0.00023121,2]
[388448106,1759173033134,-795.97,0.00023121,2]
[388448108,1759173033142,-480.0,0.00023121,2]
[388448110,1759173033151,-618.52,0.00023121,2]
[388448112,1759173033160,-480.0,0.00023121,2]
[388448114,1759173033168,-480.0,0.00023121,2]
[388448116,1759173033177,-500.0,0.00023121,2]
[388448117,1759173033186,-480.0,0.00023121,2]
[388448119,1759173033195,-480.0,0.00023121,2]
[388448121,1759173033205,-1883.23,0.00023121,2]
[388448123,1759173033214,-480.0,0.00023121,2]
[388448125,1759173033224,-480.0,0.00023121,2]
[388448127,1759173033233,-580.4,0.00023121,2]
[388448128,1759173033242,-480.0,0.00023121,2]
[388448130,1759173033251,-480.0,0.00023121,2]
[388448132,1759173033261,-480.0,0.00023121,2]
[388448134,1759173033270,-598.35,0.00023121,2]
[388448135,1759173033278,-480.0,0.00023121,2]
[388448137,1759173033287,-516.35,0.00023121,2]
[388448139,1759173033296,-480.0,0.00023121,2]
[388448141,1759173033304,-580.52,0.00023121,2]
[388448143,1759173033313,-524.66702181,0.00023121,2]
[388448145,1759173033322,-480.0,0.00023121,2]
[388448147,1759173033330,-480.0,0.00023121,2]
[388448148,1759173033339,-482.9,0.00023121,2]
[388448149,1759173033349,-512.92,0.00023121,2]
[388448150,1759173033358,-575.54,0.00023121,2]
[388448151,1759173033367,-588.49,0.00023121,2]
[388448152,1759173033376,-1127.34,0.00023121,2]
[388448153,1759173033386,-480.0,0.00023121,2]
[388448154,1759173033396,-480.0,0.00023121,2]
[388448155,1759173033406,-532.44,0.00023121,2]
[388448156,1759173033417,-647.8,0.00023121,2]
[388448157,1759173033427,-480.0,0.00023121,2]
[388448158,1759173033437,-487.54,0.00023121,2]
[388448159,1759173033447,-2018.34,0.00023121,2]
[388448160,1759173033457,-1788.93,0.00023121,2]
[388448161,1759173033467,-540.91,0.00023121,2]
[388448162,1759173033477,-529.92,0.00023121,2]
[388448163,1759173033487,-480.0,0.00023121,2]
[388448164,1759173033497,-699.47,0.00023121,2]
[388448165,1759173033507,-480.0,0.00023121,2]
[388448166,1759173033517,-500.0,0.00023121,2]
[388448167,1759173033528,-500.0,0.00023131,2]
[388448168,1759173033538,-500.02,0.00023132,2]
[388448169,1759173033547,-1137.99,0.00023132,2]
[388448170,1759173033557,-500.0,0.00023132,2]
[388448171,1759173033567,-480.0,0.00023132,2]
[388448172,1759173033577,-480.0,0.00023132,2]
[388448173,1759173033586,-480.0,0.00023132,2]
[388448174,1759173033596,-480.0,0.00023132,2]
[388448175,1759173033605,-480.0,0.00023132,2]
[388448176,1759173033617,-480.0,0.00023132,2]
[388448177,1759173033628,-496.81,0.00023132,2]
[388448178,1759173033638,-480.0,0.00023132,2]
[388448179,1759173033648,-482.23,0.00023132,2]
[388448180,1759173033658,-585.26,0.00023132,2]
[388448181,1759173033668,-480.0,0.00023132,2]
[388448182,1759173033677,-512.44875407,0.00023132,2]
[388448183,1759173033687,-511.99,0.00023132,2]
[388448184,1759173033698,-480.0,0.00023132,2]
[388448185,1759173033707,-480.0,0.00023132,2]
[388448186,1759173033717,-480.0,0.00023132,2]
[388448187,1759173033727,-480.0,0.00023132,2]
[388448188,1759173033736,-488.2,0.00023132,2]
[388448189,1759173033746,-480.0,0.00023132,2]
[388448190,1759173033755,-480.0,0.00023132,2]
[388448191,1759173033767,-1292.36,0.00023132,2]
[388448192,1759173033776,-480.0,0.00023132,2]
[388448193,1759173033786,-507.73,0.00023132,2]
[388448194,1759173033799,-480.0,0.00023132,2]
[388448195,1759173033808,-480.0,0.00023132,2]
[388448196,1759173033818,-480.0,0.00023132,2]
[388448197,1759173033827,-847.63,0.00023132,2]
[388448198,1759173033838,-480.0,0.00023132,2]
[388448199,1759173033847,-1024.31,0.00023132,2]
[388448200,1759173033857,-480.0,0.00023132,2]
[388448201,1759173033867,-480.0,0.00023132,2]
[388448202,1759173033877,-480.0,0.00023132,2]
[388448203,1759173033889,-480.0,0.00023132,2]
[388448204,1759173033899,-480.0,0.00023132,2]
[388448205,1759173033909,-480.0,0.00023132,2]
[388448206,1759173033919,-480.0,0.00023132,2]
[388448207,1759173033930,-480.0,0.00023132,2]
[388448208,1759173033939,-480.0,0.00023132,2]
[388448209,1759173033949,-480.0,0.00023132,2]
[388448210,1759173033959,-517.1,0.00023132,2]
[388448211,1759173033969,-480.0,0.00023132,2]
[388448212,1759173033980,-480.0,0.00023132,2]
[388448213,1759173033990,-480.0,0.00023132,2]
[388448214,1759173034000,-480.0,0.00023132,2]
[388448215,1759173034011,-530.6,0.00023132,2]
[388448216,1759173034021,-480.0,0.00023132,2]
[388448217,1759173034031,-480.0,0.00023132,2]
[388448218,1759173034041,-480.0,0.00023132,2]
[388448219,1759173034051,-480.0,0.00023132,2]
[388448220,1759173034060,-272.78391467,0.00023132,2]
[388448221,1759173034071,-419.14445693,0.00023132,2]
[388448222,1759173034081,-480.0,0.00023132,2]
[388448223,1759173034091,-480.0,0.00023132,2]
[388448224,1759173034103,-542.24,0.00023132,2]
[388448225,1759173034113,-480.0,0.00023132,2]
[388448226,1759173034127,-480.0,0.00023132,2]
[388448227,1759173034137,-480.0,0.00023132,2]
[388448228,1759173034146,-480.0,0.00023132,2]
[388448230,1759173034156,-728.47590747,0.0002321,2]
[388448231,1759173034165,-11893.25051447,0.00023216,2]
[388448233,1759173034174,-520.0,0.00023218,3]
[388448235,1759173034183,-480.0,0.00023218,2]
[388448236,1759173034192,-583.41487089,0.00023218,2]
[388448238,1759173034202,-486.52,0.00023219,2]
[388448240,1759173034211,-480.0,0.00023219,2]
[388448242,1759173034221,-480.0,0.00023219,2]
[388448244,1759173034230,-480.0,0.00023219,2]
[388448246,1759173034239,-554.08,0.00023219,2]
[388448248,1759173034252,-1446.94465034,0.00023256,2]
[388448250,1759173034262,-248.0,0.00023256,2]
[388448252,1759173034272,-480.0,0.00023261,2]
[388448254,1759173034281,-480.0,0.00023261,2]
[388448256,1759173034290,-535.82,0.00023261,2]
[388448258,1759173034300,-541.39276689,0.00023261,2]
[388448260,1759173034309,-480.0,0.00023261,2]
[388448262,1759173034318,-3370.41,0.00023261,2]
[388448264,1759173034327,-480.0,0.00023261,2]
[388448266,1759173034336,-480.0,0.00023261,2]
[388448268,1759173034345,-480.0,0.00023261,2]
[388448270,1759173034354,-1288.12,0.00023261,2]
[388448272,1759173034363,-480.0,0.00023261,2]
[388448274,1759173034372,-480.0,0.00023261,2]
[388448276,1759173034381,-999.43,0.00023261,2]
[388448277,1759173034390,-483.91,0.00023262,2]
[388448279,1759173034399,-480.0,0.00023262,2]
[388448281,1759173034408,-480.0,0.00023262,2]
[388448283,1759173034417,-480.0,0.00023262,2]
[388448285,1759173034426,-1362.45,0.00023262,2]
[388448287,1759173034435,-480.0,0.00023263,2]
[388448289,1759173034443,-480.0,0.00023263,2]
[388448291,1759173034452,-480.0,0.00023263,2]
[388448293,1759173034461,-480.0,0.00023263,2]
[388448295,1759173034470,-480.0,0.00023263,2]
[388448297,1759173034479,-480.0,0.00023263,2]
[388448298,1759173034489,-2628.92,0.00023293,2]
[388448300,1759173034498,-151.0,0.000233,7]
[388448302,1759173034507,-480.0,0.00023304,2]
[388448304,1759173034516,-480.0,0.00023304,2]
[388448305,1759173034526,-480.0,0.00023304,2]
[388448307,1759173034535,-429.87916032,0.00023304,2]
[388448308,1759173034544,-1851.78,0.00023304,2]
[388448310,1759173034554,-799.08,0.00023304,2]
[388448312,1759173034563,-480.0,0.00023304,2]
[388448314,1759173034573,-480.0,0.00023304,2]
[388448316,1759173034582,-568.44,0.00023304,2]
[388448317,1759173034591,-905.82,0.00023304,2]
[388448319,1759173034600,-606.37,0.00023304,2]
[388448320,1759173034610,-480.0,0.00023304,2]
[388448322,1759173034621,-1757.75,0.00023304,2]
[388448323,1759173034630,-480.0,0.00023304,2]
[388448324,1759173034640,-1873.34,0.00023304,2]
[388448325,1759173034649,-480.0,0.00023304,2]
[388448326,1759173034659,-480.0,0.00023304,2]
[388448327,1759173034668,-480.0,0.00023304,2]
[388448328,1759173034677,-310.96353194,0.00023304,2]
[388448329,1759173034906,-408.53646806,0.00023304,2]
[388448330,1759173034915,-598.59,0.00023304,2]
[388448331,1759173034925,-229.33072192,0.00023304,2]
[388448332,1759173034936,-645.97927808,0.00023304,2]
[388448333,1759173034946,-480.0,0.00023304,2]
[388448334,1759173034955,-1830.79,0.00023304,2]
[388448335,1759173034964,-1411.7,0.00023304,2]
[388448336,1759173034976,-1261.06,0.00023304,2]
[388448337,1759173034986,-607.67,0.00023304,2]
[388448338,1759173034996,-480.0,0.00023304,2]
[388448339,1759173035008,-1977.78,0.00023304,2]
[388448340,1759173035018,-985.4,0.00023304,2]
[388448341,1759173035028,-505.47,0.00023304,2]
[388448342,1759173035038,-591.27,0.00023304,2]
[388448343,1759173035048,-497.67,0.00023304,2]
[388448344,1759173035057,-484.05,0.00023304,2]
[388448345,1759173035067,-480.0,0.00023304,2]
[388448346,1759173035076,-8454.71,0.00023304,2]
[388448347,1759173035086,-480.0,0.00023304,2]
[388448348,1759173035097,-480.0,0.00023304,2]
[388448349,1759173035106,-758.32,0.00023304,2]
[388448350,1759173035288,-480.0,0.00023304,2]
[388448351,1759173035298,-2544.2,0.00023304,2]
[388448352,1759173035308,-480.0,0.00023305,2]
[388448353,1759173035318,-480.0,0.00023305,2]
[388448354,1759173035327,-480.0,0.00023305,2]
[388448355,1759173035336,-480.0,0.00023305,2]
[388448356,1759173035346,-480.0,0.00023305,2]
[388448357,1759173035355,-843.16,0.00023305,2]
[388448358,1759173035365,-529.91925944,0.00023305,2]
[388448359,1759173035375,-480.0,0.00023305,2]
[388448360,1759173035384,-480.0,0.00023305,2]
[388448361,1759173035393,-480.0,0.00023305,2]
[388448362,1759173035403,-480.0,0.00023305,2]
[388448363,1759173035413,-480.0,0.00023305,2]
[388448364,1759173035422,-535.8,0.00023305,2]
[388448365,1759173035431,-480.0,0.00023305,2]
[388448366,1759173035441,-480.0,0.00023305,2]
[388448367,1759173035451,-491.81,0.00023305,2]
[388448368,1759173035460,-480.0,0.00023305,2]
[388448369,1759173035470,-139.94758197,0.00023305,2]
[388448370,1759173035643,480.0,0.00022987,2]
[388448371,1759173035894,536.27,0.0002303,2]
[388448372,1759173036043,300.0,0.00023,2]
[388448373,1759173036152,480.0,0.0002303,2]
[388448375,1759173038534,-575.12450148,0.00023261,2]
[388448376,1759173038543,-480.0,0.00023304,2]
[388448377,1759173038561,-340.05241803,0.00023305,2]
[388448378,1759173038573,-480.0,0.00023305,2]
[388448379,1759173038583,-480.0,0.00023305,2]
[388448380,1759173038593,-538.79,0.00023305,2]
[388448381,1759173038602,-565.91,0.00023305,2]
[388448382,1759173038613,-480.0,0.00023305,2]
[388448383,1759173038627,-480.0,0.00023305,2]
[388448384,1759173038639,-1107.54,0.00023305,2]
[388448385,1759173038651,-480.0,0.00023305,2]
[388448386,1759173038665,-480.0,0.00023305,2]
[388448387,1759173038676,-480.0,0.00023305,2]
[388448388,1759173038687,-480.0,0.00023305,2]
[388448389,1759173038698,-564.96,0.00023305,2]
[388448390,1759173038708,-565.8,0.00023305,2]
[388448391,1759173038717,-484.26,0.00023305,2]
[388448392,1759173038732,-537.17,0.00023305,2]
[388448393,1759173038743,-480.0,0.00023305,2]
[388448394,1759173038754,-596.96,0.00023305,2]
[388448395,1759173038765,-534.76,0.00023305,2]
[388448396,1759173038775,-480.0,0.00023305,2]
[388448397,1759173038785,-480.0,0.00023305,2]
[388448398,1759173038795,-510.66,0.00023305,2]
[388448399,1759173038805,-480.0,0.00023305,2]
[388448400,1759173038815,-480.0,0.00023305,2]
[388448401,1759173038825,-480.0,0.00023305,2]
[388448402,1759173038835,-480.0,0.00023305,2]
[388448403,1759173038845,-480.0,0.00023305,2]
[388448404,1759173038854,-946.12,0.00023305,2]
[388448405,1759173038864,-480.0,0.00023305,2]
[388448406,1759173038873,-480.0,0.00023305,2]
[388448407,1759173038882,-973.1,0.00023305,2]
[388448408,1759173038891,-1333.6,0.00023305,2]
[388448409,1759173038899,-480.1,0.00023305,2]
[388448410,1759173038908,-480.0,0.00023305,2]
[388448411,1759173038917,-937.75,0.00023305,2]
[388448412,1759173038927,-662.53,0.00023305,2]
[388448413,1759173038937,-480.0,0.00023305,2]
[388448414,1759173038946,-480.0,0.00023305,2]
[388448415,1759173038956,-480.0,0.00023305,2]
[388448416,1759173038966,-709.36,0.00023305,2]
[388448417,1759173038979,-480.0,0.00023305,2]
[388448418,1759173038988,-480.0,0.00023305,2]
[388448419,1759173038998,-480.0,0.00023305,2]
[388448420,1759173039009,-480.0,0.00023305,2]
[388448421,1759173039019,-555.69,0.00023305,2]
[388448422,1759173039029,-480.0,0.00023305,2]
[388448423,1759173039039,-1214.95,0.00023305,2]
[388448424,1759173039049,-480.0,0.00023305,2]
[388448425,1759173039059,-509.83,0.00023305,2]
[388448426,1759173039069,-514.58,0.00023305,2]
[388448427,1759173039079,-480.0,0.00023305,2]
[388448428,1759173039088,-480.0,0.00023305,2]
[388448429,1759173039098,-660.65,0.00023305,2]
[388448430,1759173039108,-480.0,0.00023305,2]
[388448431,1759173039117,-480.0,0.00023305,2]
[388448432,1759173039127,-480.0,0.00023305,2]
[388448433,1759173039137,-521.76,0.00023305,2]
[388448434,1759173039147,-480.0,0.00023305,2]
[388448435,1759173039156,-480.0,0.00023305,2]
[388448436,1759173039166,-557.98,0.00023305,2]
[388448437,1759173039176,-480.0,0.00023305,2]
[388448438,1759173039186,-889.3,0.00023305,2]
[388448439,1759173039201,-884.07,0.00023305,2]
[388448440,1759173039211,-480.0,0.00023305,2]
[388448441,1759173039221,-761.22,0.00023305,2]
[388448442,1759173039233,-480.0,0.00023305,2]
[388448443,1759173039243,-461.18980399,0.00023305,2]
[388448444,1759173039253,-650.78,0.00023305,2]
[388448445,1759173039263,-494.33,0.00023305,2]
[388448446,1759173039273,-480.0,0.00023305,2]
[388448447,1759173039283,-480.0,0.00023305,2]
[388448448,1759173039294,-730.53,0.00023305,2]
[388448449,1759173039303,-480.0,0.00023305,2]
[388448450,1759173039313,-480.0,0.00023305,2]
[388448451,1759173039322,-480.0,0.00023305,2]
[388448452,1759173039332,-622.23,0.00023305,2]
[388448453,1759173039342,-725.44,0.00023305,2]
[388448454,1759173039352,-480.0,0.00023305,2]
[388448455,1759173039362,-480.0,0.00023305,2]
[388448456,1759173039371,-611.41,0.00023305,2]
[388448457,1759173039382,-854.24,0.00023305,2]
[388448458,1759173039391,-1067.25,0.00023305,2]
[388448459,1759173039401,-751.65,0.00023305,2]
[388448460,1759173039412,-518.96,0.00023305,2]
[388448461,1759173039422,-1941.42,0.00023305,2]
[388448462,1759173039432,-480.0,0.00023305,2]
[388448463,1759173039442,-480.0,0.00023305,2]
[388448464,1759173039452,-1045.96,0.00023305,2]
[388448465,1759173039462,-480.0,0.00023305,2]
[388448466,1759173039472,-559.05,0.00023305,2]
[388448467,1759173039482,-1594.22,0.00023305,2]
[388448468,1759173039493,-507.38,0.00023305,2]
[388448469,1759173039502,-480.0,0.00023305,2]
[388448470,1759173039512,-931.69,0.00023305,2]
[388448471,1759173039522,-750.49,0.00023305,2]
[388448472,1759173039532,-480.0,0.00023305,2]
[388448473,1759173039542,-480.0,0.00023305,2]
[388448474,1759173039552,-1818.49,0.00023305,2]
[388448475,1759173039562,-480.0,0.00023305,2]
[388448476,1759173039571,-536.74,0.00023305,2]
[388448477,1759173039581,-1150.19,0.00023305,2]
[388448478,1759173039591,-601.46,0.00023305,2]
[388448479,1759173039601,-936.97,0.00023305,2]
[388448480,1759173039611,-480.0,0.00023305,2]
[388448481,1759173039626,-1074.76,0.00023305,2]
[388448482,1759173039636,-480.0,0.00023305,2]
[388448483,1759173039647,-2015.78,0.00023305,2]
[388448484,1759173039656,-480.0,0.00023305,2]
[388448485,1759173039667,-537.84,0.00023305,2]
[388448486,1759173039677,-4488.16,0.00023305,2]
[388448487,1759173039688,-534.09,0.00023305,2]
[388448488,1759173039699,-480.0,0.00023305,2]
[388448489,1759173039709,-480.0,0.00023305,2]
[388448490,1759173039718,-165.26,0.00023305,2]
[388448491,1759173039729,-758.46,0.00023305,2]
[388448492,1759173039739,-563.22,0.00023305,2]
[388448493,1759173039749,-684.82,0.00023305,2]
[388448494,1759173039759,-1996.9,0.00023305,2]
[388448495,1759173039768,-480.0,0.00023305,2]
[388448496,1759173039779,-480.0,0.00023305,2]
[388448497,1759173039788,-480.0,0.00023305,2]
[388448498,1759173039799,-599.86,0.00023305,2]
[388448499,1759173039811,-480.0,0.00023305,2]
[388448500,1759173039820,-1081.95,0.00023305,2]
[388448501,1759173039830,-1679.9,0.00023305,2]
[388448502,1759173039840,-480.0,0.00023305,2]
[388448503,1759173039849,-480.0,0.00023305,2]
[388448504,1759173039859,-1161.48,0.00023305,2]
[388448505,1759173039869,-4432.55,0.00023305,2]
[388448506,1759173039879,-480.0,0.00023305,2]
[388448507,1759173039888,-480.0,0.00023305,2]
[388448508,1759173039899,-503.01,0.00023305,2]
[388448509,1759173039909,-951.32,0.00023305,2]
[388448510,1759173039920,-874.51,0.00023305,2]
[388448511,1759173039931,-480.0,0.00023305,2]
[388448512,1759173039941,-480.0,0.00023305,2]
[388448513,1759173039951,-763.03,0.00023305,2]
[388448514,1759173039960,-2353.62,0.00023305,2]
[388448515,1759173039970,-500.0,0.00023305,2]
[388448516,1759173039980,-480.0,0.00023305,2]
[388448517,1759173039990,-676.4,0.00023305,2]
[388448518,1759173040000,-480.0,0.00023305,2]
[388448519,1759173040010,-480.0,0.00023305,2]
[388448520,1759173040020,-5381.11,0.00023305,2]
[388448521,1759173040029,-1839.96,0.00023305,2]
[388448522,1759173040039,-480.0,0.00023305,2]
[388448523,1759173040048,-168.0,0.00023311,2]
[388448524,1759173040057,-500.0,0.00023373,2]
[388448525,1759173040067,-500.0,0.00023373,2]
[388448526,1759173040076,-500.0,0.00023373,2]
[388448527,1759173040086,-270.66255595,0.00023373,2]
[388448528,1759173040098,-500.0,0.00023373,2]
[388448529,1759173040109,-500.0,0.00023373,2]
[388448530,1759173040119,-500.0,0.00023373,2]
[388448531,1759173040128,-500.0,0.00023373,2]
[388448532,1759173040138,-500.0,0.00023373,2]
[388448533,1759173040148,-500.0,0.00023373,2]
[388448535,1759173040158,-500.0,0.00023373,2]
[388448536,1759173040168,-500.0,0.00023373,2]
[388448537,1759173040178,-500.0,0.00023373,2]
[388448538,1759173040187,-500.0,0.00023373,2]
[388448539,1759173040200,-10000.0,0.00023393,2]
[388448540,1759173040209,-480.0,0.00023395,2]
[388448541,1759173040219,-795.97,0.00023395,2]
[388448542,1759173040230,-480.0,0.00023395,2]
[388448543,1759173040239,-618.52,0.00023395,2]
[388448544,1759173040249,-480.0,0.00023395,2]
[388448545,1759173040259,-480.0,0.00023395,2]
[388448547,1759173040268,-480.0,0.00023395,2]
[388448548,1759173040277,-480.0,0.00023395,2]
[388448549,1759173040286,-1883.23,0.00023395,2]
[388448550,1759173040295,-539.31820529,0.00023395,2]
[388448551,1759173040305,-480.0,0.00023395,2]
[388448552,1759173040315,-580.4,0.00023395,2]
[388448554,1759173040324,-480.0,0.00023395,2]
[388448556,1759173040333,-480.0,0.00023395,2]
[388448557,1759173040342,-480.0,0.00023395,2]
[388448558,1759173040352,-598.35,0.00023395,2]
[388448559,1759173040361,-480.0,0.00023395,2]
[388448560,1759173040370,-516.35,0.00023395,2]
[388448562,1759173040379,-480.0,0.00023395,2]
[388448563,1759173040389,-580.52,0.00023395,2]
[388448564,1759173040398,-480.0,0.00023395,2]
[388448565,1759173040408,-480.0,0.00023395,2]
[388448566,1759173040417,-482.9,0.00023395,2]
[388448567,1759173040426,-512.92,0.00023395,2]
[388448568,1759173040441,-575.54,0.00023395,2]
[388448569,1759173040451,-588.49,0.00023395,2]
[388448570,1759173040460,-1127.34,0.00023395,2]
[388448571,1759173040469,-480.0,0.00023395,2]
[388448572,1759173040481,-480.0,0.00023395,2]
[388448574,1759173040491,-532.44,0.00023395,2]
[388448576,1759173040501,-647.8,0.00023395,2]
[388448577,1759173040510,-480.0,0.00023395,2]
[388448578,1759173040520,-487.54,0.00023395,2]
[388448579,1759173040530,-2018.34,0.00023395,2]
[388448580,1759173040539,-1788.93,0.00023395,2]
[388448581,1759173040548,-540.91,0.00023395,2]
[388448582,1759173040557,-529.92,0.00023395,2]
[388448583,1759173040566,-480.0,0.00023395,2]
[388448584,1759173040575,-699.47,0.00023395,2]
[388448585,1759173040584,-480.0,0.00023395,2]
[388448586,1759173040593,-500.0,0.00023395,2]